[Event "*** Titled Tuesday Blitz"]
[Site "Chess.com"]
[Date "2019.08.06"]
[Round "7"]
[White "ChrisTool2"]
[Black "JSMastropiero"]
[Result "1-0"]
[WhiteElo "2291"]
[BlackElo "2310"]
[TimeControl "180+2"]
[EndTime "14:37:11 PDT"]
[Termination "ChrisTool2 won by checkmate"]

1. d4 {[%clk 0:03:01.9]} 1... e6 {[%clk 0:03:00]} 2. c4 {[%clk 0:03:03.4]} 2...
d5 {[%clk 0:02:59]} 3. Nf3 {[%clk 0:03:04.9]} 3... Nf6 {[%clk 0:02:59]} 4. Nc3
{[%clk 0:03:06.1]} 4... Bb4 {[%clk 0:02:59.3]} 5. Qa4+ {[%clk 0:03:03]} 5... Nc6
{[%clk 0:02:58.9]} 6. Bg5 {[%clk 0:03:04.7]} 6... h6 {[%clk 0:02:53.7]} 7. Bxf6
{[%clk 0:03:05]} 7... Qxf6 {[%clk 0:02:45.5]} 8. e3 {[%clk 0:03:06.9]} 8... O-O
{[%clk 0:02:43.6]} 9. Qc2 {[%clk 0:02:55.5]} 9... e5 {[%clk 0:02:31.5]} 10. a3
{[%clk 0:01:30.8]} 10... exd4 {[%clk 0:02:23.6]} 11. exd4 {[%clk 0:01:17.8]}
11... Re8+ {[%clk 0:02:17.5]} 12. Be2 {[%clk 0:01:18.8]} 12... Bxc3+ {[%clk
0:02:07.3]} 13. bxc3 {[%clk 0:01:20.7]} 13... dxc4 {[%clk 0:02:02.8]} 14. O-O
{[%clk 0:01:21.5]} 14... Na5 {[%clk 0:01:59.2]} 15. Qa4 {[%clk 0:01:15.9]} 15...
Rxe2 {[%clk 0:01:52.2]} 16. Qxa5 {[%clk 0:01:09.8]} 16... b6 {[%clk 0:01:40.1]}
17. Qd5 {[%clk 0:01:06.5]} 17... Rb8 {[%clk 0:01:23.2]} 18. Qxc4 {[%clk
0:01:07]} 18... Re7 {[%clk 0:01:21.5]} 19. Rfe1 {[%clk 0:01:04.9]} 19... Bb7
{[%clk 0:01:11]} 20. Rxe7 {[%clk 0:00:51.5]} 20... Qxe7 {[%clk 0:01:12.9]} 21.
Re1 {[%clk 0:00:52.3]} 21... Qd6 {[%clk 0:01:04.3]} 22. Ne5 {[%clk 0:00:51.8]}
22... Bd5 {[%clk 0:01:03.2]} 23. Qa4 {[%clk 0:00:44.9]} 23... a5 {[%clk
0:01:01.4]} 24. h3 {[%clk 0:00:37.9]} 24... f6 {[%clk 0:00:44]} 25. Ng6 {[%clk
0:00:31.1]} 25... Kf7 {[%clk 0:00:38.6]} 26. Nh4 {[%clk 0:00:27.9]} 26... Qc6
{[%clk 0:00:33.7]} 27. Qc2 {[%clk 0:00:23.5]} 27... Re8 {[%clk 0:00:20.8]} 28.
Qg6+ {[%clk 0:00:19]} 28... Kf8 {[%clk 0:00:21.9]} 29. Re3 {[%clk 0:00:13.2]}
29... Rxe3 {[%clk 0:00:18.6]} 30. fxe3 {[%clk 0:00:15.1]} 30... Qxc3 {[%clk
0:00:18.8]} 31. Nf5 {[%clk 0:00:12.8]} 31... Bf7 {[%clk 0:00:05.5]} 32. Qxg7+
{[%clk 0:00:12.1]} 32... Ke8 {[%clk 0:00:07.1]} 33. Qxf6 {[%clk 0:00:11.5]}
33... Qxa3 {[%clk 0:00:05.8]} 34. Ng7+ {[%clk 0:00:11.8]} 34... Kf8 {[%clk
0:00:06.5]} 35. Ne6+ {[%clk 0:00:11.6]} 35... Ke8 {[%clk 0:00:07.8]} 36. Qd8#
{[%clk 0:00:12.6]} 1-0

[Event "*** Titled Tuesday Blitz"]
[Site "Chess.com"]
[Date "2019.08.06"]
[Round "7"]
[White "rekosheten"]
[Black "Rhemmy"]
[Result "0-1"]
[WhiteElo "2371"]
[BlackElo "2509"]
[TimeControl "180+2"]
[EndTime "14:37:16 PDT"]
[Termination "Rhemmy won by resignation"]

1. e4 {[%clk 0:03:01.9]} 1... e5 {[%clk 0:03:00.7]} 2. Nf3 {[%clk 0:03:02.6]}
2... Nc6 {[%clk 0:03:02.2]} 3. Bc4 {[%clk 0:03:03.4]} 3... Nf6 {[%clk
0:03:02.5]} 4. O-O {[%clk 0:03:00.1]} 4... Nxe4 {[%clk 0:03:01.8]} 5. d4 {[%clk
0:03:00.2]} 5... exd4 {[%clk 0:03:02.4]} 6. Re1 {[%clk 0:02:58.6]} 6... d5
{[%clk 0:03:03.3]} 7. Bxd5 {[%clk 0:03:00]} 7... Qxd5 {[%clk 0:03:05.1]} 8. Nc3
{[%clk 0:03:01.5]} 8... Qa5 {[%clk 0:03:05.9]} 9. Nxe4 {[%clk 0:03:02.2]} 9...
Be6 {[%clk 0:03:07.5]} 10. Neg5 {[%clk 0:03:01.3]} 10... O-O-O {[%clk
0:03:08.6]} 11. Nxe6 {[%clk 0:03:02.8]} 11... fxe6 {[%clk 0:03:10.1]} 12. Rxe6
{[%clk 0:03:04.4]} 12... Qd5 {[%clk 0:03:10]} 13. Qe2 {[%clk 0:02:50.3]} 13...
h6 {[%clk 0:03:10.7]} 14. Bf4 {[%clk 0:02:47]} 14... Bc5 {[%clk 0:03:10.7]} 15.
Re1 {[%clk 0:02:40]} 15... Qxa2 {[%clk 0:03:08.4]} 16. Qb5 {[%clk 0:02:39.4]}
16... Bb6 {[%clk 0:03:09.4]} 17. Rxc6 {[%clk 0:02:00]} 17... bxc6 {[%clk
0:03:06.9]} 18. Qxc6 {[%clk 0:02:01.9]} 18... Qd5 {[%clk 0:02:59]} 19. Qa4
{[%clk 0:02:02.6]} 19... Rhf8 {[%clk 0:02:34.2]} 20. Bg3 {[%clk 0:02:01.3]}
20... g5 {[%clk 0:02:24.9]} 21. Re7 {[%clk 0:01:57.4]} 21... Rf7 {[%clk
0:02:04]} 22. Qa6+ {[%clk 0:01:05.2]} 22... Kb8 {[%clk 0:02:01.8]} 23. Re5
{[%clk 0:01:06.6]} 23... Qc6 {[%clk 0:01:42.9]} 24. Rb5 {[%clk 0:00:54.7]} 24...
Rd5 {[%clk 0:01:18.5]} 25. Rb3 {[%clk 0:00:36.5]} 25... Qxc2 {[%clk 0:00:58.9]}
26. Rxb6+ {[%clk 0:00:31.3]} 26... axb6 {[%clk 0:01:00]} 27. Qxb6+ {[%clk
0:00:33.2]} 27... Kc8 {[%clk 0:01:01.5]} 28. Qe6+ {[%clk 0:00:27.1]} 28... Rfd7
{[%clk 0:00:59.7]} 29. h4 {[%clk 0:00:24.5]} 29... Qf5 {[%clk 0:00:55.2]} 30.
Qa6+ {[%clk 0:00:24.3]} 30... Kd8 {[%clk 0:00:50]} 31. Qxh6 {[%clk 0:00:21.1]}
31... d3 {[%clk 0:00:45.6]} 32. Qh8+ {[%clk 0:00:13.4]} 32... Ke7 {[%clk
0:00:45.3]} 33. hxg5 {[%clk 0:00:09.6]} 33... d2 {[%clk 0:00:42.6]} 34. Nxd2
{[%clk 0:00:08.8]} 34... Rxd2 {[%clk 0:00:42.7]} 35. Qg7+ {[%clk 0:00:08.5]}
35... Qf7 {[%clk 0:00:37]} 36. Qe5+ {[%clk 0:00:07.6]} 36... Kd8 {[%clk
0:00:36]} 37. f4 {[%clk 0:00:04]} 37... Rd1+ {[%clk 0:00:34.7]} 38. Kf2 {[%clk
0:00:05.1]} 38... R7d2+ {[%clk 0:00:35.4]} 39. Kf3 {[%clk 0:00:06.2]} 39... Qh5+
{[%clk 0:00:33.8]} 40. Ke4 {[%clk 0:00:07.1]} 40... Re2+ {[%clk 0:00:34.4]} 0-1

[Event "*** Titled Tuesday Blitz"]
[Site "Chess.com"]
[Date "2019.08.06"]
[Round "7"]
[White "VeraNebolsina"]
[Black "GMMarcinDziuba"]
[Result "0-1"]
[WhiteElo "2392"]
[BlackElo "2730"]
[TimeControl "180+2"]
[EndTime "14:37:17 PDT"]
[Termination "GMMarcinDziuba won by resignation"]

1. e4 {[%clk 0:03:01.9]} 1... d6 {[%clk 0:03:00]} 2. d4 {[%clk 0:03:01.6]} 2...
g6 {[%clk 0:03:00.7]} 3. Nc3 {[%clk 0:03:01.8]} 3... Bg7 {[%clk 0:03:01.9]} 4.
h4 {[%clk 0:02:55.8]} 4... h5 {[%clk 0:02:59.4]} 5. Nf3 {[%clk 0:02:51.5]} 5...
Bg4 {[%clk 0:02:45.4]} 6. Be2 {[%clk 0:02:50.8]} 6... Nc6 {[%clk 0:02:45.5]} 7.
Be3 {[%clk 0:02:48.4]} 7... Nf6 {[%clk 0:02:41.6]} 8. Ng5 {[%clk 0:02:47.5]}
8... Bxe2 {[%clk 0:02:31.6]} 9. Qxe2 {[%clk 0:02:48.1]} 9... Ng4 {[%clk
0:02:30.2]} 10. O-O-O {[%clk 0:02:47]} 10... Qd7 {[%clk 0:02:20.3]} 11. Kb1
{[%clk 0:02:14.7]} 11... Bh6 {[%clk 0:01:57.5]} 12. Bc1 {[%clk 0:02:10]} 12...
e5 {[%clk 0:01:36.4]} 13. Nd5 {[%clk 0:02:02.2]} 13... Nxd4 {[%clk 0:01:12.8]}
14. Rxd4 {[%clk 0:01:30.1]} 14... exd4 {[%clk 0:01:14.7]} 15. f3 {[%clk
0:01:30.8]} 15... c6 {[%clk 0:01:16]} 16. fxg4 {[%clk 0:01:29.9]} 16... cxd5
{[%clk 0:01:17]} 17. exd5+ {[%clk 0:01:28.9]} 17... Kd8 {[%clk 0:01:06.2]} 18.
Qf2 {[%clk 0:01:27.6]} 18... Bxg5 {[%clk 0:01:00.9]} 19. Bxg5+ {[%clk
0:01:26.5]} 19... Kc7 {[%clk 0:00:54.6]} 20. Qxd4 {[%clk 0:01:23.8]} 20... Qxg4
{[%clk 0:00:55.5]} 21. Qd3 {[%clk 0:01:14.5]} 21... Rae8 {[%clk 0:00:52.1]} 22.
Rf1 {[%clk 0:01:10.3]} 22... f5 {[%clk 0:00:44.2]} 23. a4 {[%clk 0:00:58.9]}
23... Qxa4 {[%clk 0:00:40.7]} 24. Qc3+ {[%clk 0:00:59.3]} 24... Kb8 {[%clk
0:00:28.4]} 25. Bf4 {[%clk 0:00:57.2]} 25... Qa6 {[%clk 0:00:20.3]} 26. Rd1
{[%clk 0:00:55.9]} 26... Rhf8 {[%clk 0:00:16.9]} 27. Qb4 {[%clk 0:00:55.9]}
27... Rf6 {[%clk 0:00:14.6]} 28. Qc3 {[%clk 0:00:52.7]} 28... Rf7 {[%clk
0:00:14.9]} 29. Qb4 {[%clk 0:00:53.7]} 29... Rd7 {[%clk 0:00:14.9]} 30. b3
{[%clk 0:00:53.9]} 30... Re4 {[%clk 0:00:15.1]} 31. Qd2 {[%clk 0:00:54.6]} 31...
Qe2 {[%clk 0:00:14.7]} 32. Qc1 {[%clk 0:00:50.4]} 32... a5 {[%clk 0:00:09.6]}
33. Bg5 {[%clk 0:00:50.4]} 33... a4 {[%clk 0:00:09.9]} 34. Rd3 {[%clk
0:00:41.4]} 34... Rc7 {[%clk 0:00:08.2]} 35. Bd8 {[%clk 0:00:32.2]} 35... Rc8
{[%clk 0:00:08]} 36. Bb6 {[%clk 0:00:30.6]} 36... Qxd3 {[%clk 0:00:08.2]} 37.
cxd3 {[%clk 0:00:29.2]} 37... Rxc1+ {[%clk 0:00:08.8]} 38. Kxc1 {[%clk
0:00:30.4]} 38... Rxh4 {[%clk 0:00:09.4]} 39. bxa4 {[%clk 0:00:29.6]} 39... Rxa4
{[%clk 0:00:09.9]} 0-1

[Event "*** Titled Tuesday Blitz"]
[Site "Chess.com"]
[Date "2019.08.06"]
[Round "7"]
[White "kinga2008"]
[Black "Chigorinetz"]
[Result "0-1"]
[WhiteElo "1928"]
[BlackElo "2608"]
[TimeControl "180+2"]
[EndTime "14:37:21 PDT"]
[Termination "Chigorinetz won on time"]

1. e4 {[%clk 0:03:01.9]} 1... c5 {[%clk 0:03:00.4]} 2. Nf3 {[%clk 0:03:01.3]}
2... Nc6 {[%clk 0:03:00.4]} 3. c3 {[%clk 0:02:57.4]} 3... d5 {[%clk 0:03:00.6]}
4. Bd3 {[%clk 0:02:56.7]} 4... Nf6 {[%clk 0:02:54]} 5. exd5 {[%clk 0:02:56.3]}
5... Qxd5 {[%clk 0:02:46.9]} 6. Bc2 {[%clk 0:02:58.2]} 6... Bg4 {[%clk
0:02:46.1]} 7. O-O {[%clk 0:02:56.8]} 7... e6 {[%clk 0:02:44.3]} 8. Bb3 {[%clk
0:02:56]} 8... c4 {[%clk 0:02:28]} 9. Bc2 {[%clk 0:02:39.7]} 9... Ne5 {[%clk
0:02:27.8]} 10. d4 {[%clk 0:02:18.9]} 10... Nxf3+ {[%clk 0:01:45.9]} 11. gxf3
{[%clk 0:02:16.5]} 11... Bxf3 {[%clk 0:01:46.3]} 12. Qd2 {[%clk 0:02:09.8]}
12... Bd6 {[%clk 0:01:46.4]} 13. Qg5 {[%clk 0:01:53.2]} 13... O-O-O {[%clk
0:01:45.6]} 14. Qxd5 {[%clk 0:01:42.6]} 14... exd5 {[%clk 0:01:45.7]} 15. Nd2
{[%clk 0:01:32]} 15... Be2 {[%clk 0:01:45.8]} 16. Re1 {[%clk 0:01:21.4]} 16...
Rde8 {[%clk 0:01:44.5]} 17. f3 {[%clk 0:01:09.9]} 17... Re7 {[%clk 0:01:33.4]}
18. Kf2 {[%clk 0:00:52.6]} 18... Rhe8 {[%clk 0:01:33.1]} 19. b3 {[%clk
0:00:42.7]} 19... Bd3 {[%clk 0:01:29]} 20. Rxe7 {[%clk 0:00:32]} 20... Rxe7
{[%clk 0:01:29.4]} 21. Bxd3 {[%clk 0:00:32.2]} 21... cxd3 {[%clk 0:01:26.6]} 22.
Nf1 {[%clk 0:00:22.9]} 22... Re2+ {[%clk 0:01:25.3]} 23. Kg1 {[%clk 0:00:23.3]}
23... Nh5 {[%clk 0:01:19.4]} 24. Bd2 {[%clk 0:00:23]} 24... Bxh2+ {[%clk
0:01:14.2]} 25. Nxh2 {[%clk 0:00:19.5]} 25... Rxd2 {[%clk 0:01:14.8]} 26. Re1
{[%clk 0:00:21.4]} 26... Kd7 {[%clk 0:01:10.9]} 27. Ng4 {[%clk 0:00:20.2]} 27...
f6 {[%clk 0:01:08.4]} 28. Ne3 {[%clk 0:00:17.7]} 28... Nf4 {[%clk 0:01:07.5]}
29. Nf5 {[%clk 0:00:17]} 29... g6 {[%clk 0:00:58.2]} 30. Ne3 {[%clk 0:00:06.3]}
30... Kd6 {[%clk 0:00:42.8]} 31. Ng4 {[%clk 0:00:06.5]} 31... Re2 {[%clk
0:00:35.9]} 32. Rxe2 {[%clk 0:00:03.7]} 32... Nxe2+ {[%clk 0:00:34.4]} 33. Kf2
{[%clk 0:00:04.1]} 33... Nxc3 {[%clk 0:00:35.6]} 34. Ke3 {[%clk 0:00:03.1]}
34... Nxa2 {[%clk 0:00:34.6]} 35. Nxf6 {[%clk 0:00:02.4]} 35... h5 {[%clk
0:00:34.9]} 0-1

[Event "*** Titled Tuesday Blitz"]
[Site "Chess.com"]
[Date "2019.08.06"]
[Round "7"]
[White "wonderfultime"]
[Black "Korchmar_Vasiliy"]
[Result "0-1"]
[WhiteElo "2852"]
[BlackElo "2686"]
[TimeControl "180+2"]
[EndTime "14:37:40 PDT"]
[Termination "Korchmar_Vasiliy won by resignation"]

1. c4 {[%clk 0:03:01.9]} 1... c5 {[%clk 0:02:56.6]} 2. Nf3 {[%clk 0:03:01.6]}
2... Nc6 {[%clk 0:02:57.9]} 3. Nc3 {[%clk 0:03:01.8]} 3... g6 {[%clk 0:02:57.9]}
4. e3 {[%clk 0:03:03.2]} 4... Bg7 {[%clk 0:02:55.9]} 5. d4 {[%clk 0:03:04.3]}
5... Nf6 {[%clk 0:02:55.8]} 6. d5 {[%clk 0:03:03.9]} 6... Na5 {[%clk 0:02:57.2]}
7. Bd3 {[%clk 0:02:57.7]} 7... d6 {[%clk 0:02:58.3]} 8. O-O {[%clk 0:02:57.8]}
8... O-O {[%clk 0:02:59.5]} 9. h3 {[%clk 0:02:58.9]} 9... e5 {[%clk 0:02:59.6]}
10. Nd2 {[%clk 0:02:56.1]} 10... b6 {[%clk 0:02:58.2]} 11. a3 {[%clk 0:02:55.2]}
11... Ne8 {[%clk 0:02:57.7]} 12. Qc2 {[%clk 0:02:51.9]} 12... f5 {[%clk
0:02:57.6]} 13. f4 {[%clk 0:02:53.3]} 13... e4 {[%clk 0:02:54.3]} 14. Be2 {[%clk
0:02:54.3]} 14... g5 {[%clk 0:02:52.6]} 15. b4 {[%clk 0:02:52.4]} 15... Nb7
{[%clk 0:02:53.8]} 16. Bb2 {[%clk 0:02:53.2]} 16... Bd7 {[%clk 0:02:45.2]} 17.
Rae1 {[%clk 0:02:47.3]} 17... Rc8 {[%clk 0:02:46.1]} 18. b5 {[%clk 0:02:48.3]}
18... gxf4 {[%clk 0:02:38.2]} 19. Rxf4 {[%clk 0:02:39.1]} 19... Be5 {[%clk
0:02:38]} 20. Ref1 {[%clk 0:02:29.1]} 20... Bxf4 {[%clk 0:02:33.7]} 21. Rxf4
{[%clk 0:02:31]} 21... Ng7 {[%clk 0:02:30.8]} 22. Nd1 {[%clk 0:02:28.3]} 22...
Qg5 {[%clk 0:02:29.7]} 23. h4 {[%clk 0:02:25.8]} 23... Qg6 {[%clk 0:02:21.7]}
24. Qc3 {[%clk 0:02:19.6]} 24... Nd8 {[%clk 0:02:20.1]} 25. h5 {[%clk
0:02:20.6]} 25... Qh6 {[%clk 0:02:15.8]} 26. Nf2 {[%clk 0:01:29.5]} 26... Nf7
{[%clk 0:02:14.6]} 27. Nh3 {[%clk 0:01:28.6]} 27... Ne5 {[%clk 0:02:13.5]} 28.
Nf1 {[%clk 0:01:27.9]} 28... Ne8 {[%clk 0:02:01.1]} 29. Qe1 {[%clk 0:01:11.3]}
29... Nf6 {[%clk 0:02:00.9]} 30. Qg3+ {[%clk 0:01:12.3]} 30... Kh8 {[%clk
0:01:55.1]} 31. Qh4 {[%clk 0:01:13.4]} 31... Rg8 {[%clk 0:01:53.9]} 32. Ng3
{[%clk 0:01:11.9]} 32... Rcf8 {[%clk 0:01:39.3]} 33. Nxf5 {[%clk 0:01:11.5]}
33... Bxf5 {[%clk 0:01:40.5]} 34. Rxf5 {[%clk 0:01:12.9]} 34... Qxe3+ {[%clk
0:01:42.4]} 35. Rf2 {[%clk 0:01:05.7]} 35... Rg7 {[%clk 0:01:33.5]} 36. Kh1
{[%clk 0:00:59.3]} 36... Qg3 {[%clk 0:01:05.6]} 37. Qxg3 {[%clk 0:00:37.7]}
37... Rxg3 {[%clk 0:01:07.5]} 38. Nf4 {[%clk 0:00:36.2]} 38... Kg8 {[%clk
0:01:04.6]} 39. Ne6 {[%clk 0:00:36.4]} 39... Rf7 {[%clk 0:01:06.1]} 40. Rf5
{[%clk 0:00:19]} 40... Nfd7 {[%clk 0:01:03.3]} 41. Bxe5 {[%clk 0:00:05]} 41...
Nxe5 {[%clk 0:01:03.1]} 42. Rxe5 {[%clk 0:00:06.2]} 42... dxe5 {[%clk
0:01:03.1]} 43. Kh2 {[%clk 0:00:08.1]} 43... Rxa3 {[%clk 0:00:51.4]} 44. d6
{[%clk 0:00:07.1]} 44... Ra2 {[%clk 0:00:51]} 45. Bg4 {[%clk 0:00:06.5]} 45...
Rd2 {[%clk 0:00:52]} 46. Ng5 {[%clk 0:00:07.8]} 46... Rxd6 {[%clk 0:00:52.1]}
47. Nxf7 {[%clk 0:00:08]} 47... Kxf7 {[%clk 0:00:54]} 48. Bf5 {[%clk 0:00:09.2]}
48... h6 {[%clk 0:00:52.5]} 49. Bxe4 {[%clk 0:00:10]} 49... Rd4 {[%clk
0:00:54.2]} 50. Bc6 {[%clk 0:00:08.3]} 50... Kf6 {[%clk 0:00:56.1]} 0-1

[Event "*** Titled Tuesday Blitz"]
[Site "Chess.com"]
[Date "2019.08.06"]
[Round "7"]
[White "Irochka83"]
[Black "IMDT02"]
[Result "1-0"]
[WhiteElo "2348"]
[BlackElo "2523"]
[TimeControl "180+2"]
[EndTime "14:37:45 PDT"]
[Termination "Irochka83 won by resignation"]

1. d4 {[%clk 0:02:59]} 1... f5 {[%clk 0:03:00.2]} 2. g3 {[%clk 0:02:57.3]} 2...
Nf6 {[%clk 0:03:01.4]} 3. Bg2 {[%clk 0:02:58.8]} 3... e6 {[%clk 0:03:02.9]} 4.
c4 {[%clk 0:03:00.2]} 4... d5 {[%clk 0:03:04.5]} 5. Nd2 {[%clk 0:03:00.1]} 5...
c6 {[%clk 0:03:06]} 6. Nh3 {[%clk 0:03:00]} 6... Bd6 {[%clk 0:03:06.6]} 7. O-O
{[%clk 0:03:00.6]} 7... O-O {[%clk 0:03:07.6]} 8. b3 {[%clk 0:03:00.8]} 8...
Nbd7 {[%clk 0:03:08.4]} 9. Nf3 {[%clk 0:03:01.8]} 9... Qe7 {[%clk 0:03:09.2]}
10. Bf4 {[%clk 0:03:01.9]} 10... Ne4 {[%clk 0:03:10.3]} 11. Bxd6 {[%clk
0:03:00.9]} 11... Qxd6 {[%clk 0:03:11.5]} 12. Nf4 {[%clk 0:03:01.7]} 12... b6
{[%clk 0:03:10.5]} 13. Rc1 {[%clk 0:02:56.4]} 13... Bb7 {[%clk 0:03:11]} 14. Nd3
{[%clk 0:02:54.9]} 14... a5 {[%clk 0:03:10.8]} 15. e3 {[%clk 0:02:46.3]} 15...
a4 {[%clk 0:03:03.4]} 16. b4 {[%clk 0:02:37.8]} 16... dxc4 {[%clk 0:02:58.2]}
17. Rxc4 {[%clk 0:02:37.7]} 17... Ba6 {[%clk 0:02:58]} 18. Rc1 {[%clk
0:02:38.5]} 18... c5 {[%clk 0:02:25]} 19. bxc5 {[%clk 0:02:39.5]} 19... bxc5
{[%clk 0:02:20.1]} 20. Re1 {[%clk 0:02:34.5]} 20... c4 {[%clk 0:02:09.4]} 21.
Nde5 {[%clk 0:02:33.1]} 21... Nb6 {[%clk 0:01:38.9]} 22. Nd2 {[%clk 0:02:20.4]}
22... Rac8 {[%clk 0:01:27.4]} 23. Nxe4 {[%clk 0:02:16.1]} 23... fxe4 {[%clk
0:01:27.9]} 24. Bxe4 {[%clk 0:02:17.5]} 24... Qe7 {[%clk 0:01:06]} 25. Qc2
{[%clk 0:02:03]} 25... g6 {[%clk 0:00:59.8]} 26. Rb1 {[%clk 0:01:55.1]} 26...
Nd5 {[%clk 0:00:57.3]} 27. Rec1 {[%clk 0:01:35.3]} 27... c3 {[%clk 0:00:54.9]}
28. Qxa4 {[%clk 0:01:23.2]} 28... Be2 {[%clk 0:00:48.5]} 29. Qc2 {[%clk
0:00:33.1]} 29... Ba6 {[%clk 0:00:42.5]} 30. Qb3 {[%clk 0:00:32]} 30... Qf6
{[%clk 0:00:40.7]} 31. Rc2 {[%clk 0:00:23]} 31... Rb8 {[%clk 0:00:17.5]} 32.
Qxb8 {[%clk 0:00:22.6]} 32... Rxb8 {[%clk 0:00:19.4]} 33. Rxb8+ {[%clk
0:00:23.6]} 33... Kg7 {[%clk 0:00:21.3]} 34. Bxd5 {[%clk 0:00:22.2]} 34... exd5
{[%clk 0:00:22.7]} 35. Rxc3 {[%clk 0:00:23.7]} 35... Qf5 {[%clk 0:00:21]} 36.
Rc7+ {[%clk 0:00:21.6]} 36... Kh6 {[%clk 0:00:19.9]} 37. Rb6 {[%clk 0:00:13.4]}
37... Be2 {[%clk 0:00:19.1]} 38. Rbb7 {[%clk 0:00:11.9]} 38... g5 {[%clk
0:00:07.5]} 39. Rxh7+ {[%clk 0:00:11.3]} 39... Qxh7 {[%clk 0:00:06.5]} 40. Rxh7+
{[%clk 0:00:12.6]} 40... Kxh7 {[%clk 0:00:08.4]} 41. f4 {[%clk 0:00:12.6]} 41...
g4 {[%clk 0:00:08.8]} 42. Kf2 {[%clk 0:00:13.1]} 1-0

[Event "*** Titled Tuesday Blitz"]
[Site "Chess.com"]
[Date "2019.08.06"]
[Round "7"]
[White "gena217"]
[Black "Chopper1905"]
[Result "1-0"]
[WhiteElo "2929"]
[BlackElo "2823"]
[TimeControl "180+2"]
[EndTime "14:37:46 PDT"]
[Termination "gena217 won by resignation"]

1. e4 {[%clk 0:03:01.9]} 1... e5 {[%clk 0:02:56.1]} 2. Nf3 {[%clk 0:03:02]} 2...
Nc6 {[%clk 0:02:57.5]} 3. Bc4 {[%clk 0:03:02]} 3... Bc5 {[%clk 0:02:58]} 4. c3
{[%clk 0:03:03.3]} 4... Nf6 {[%clk 0:02:59.5]} 5. d3 {[%clk 0:03:04.3]} 5... a6
{[%clk 0:02:58.8]} 6. O-O {[%clk 0:03:05.1]} 6... Ba7 {[%clk 0:03:00.4]} 7. a4
{[%clk 0:03:06]} 7... d6 {[%clk 0:03:01.7]} 8. Nbd2 {[%clk 0:03:07]} 8... h6
{[%clk 0:03:02.9]} 9. Re1 {[%clk 0:03:07.7]} 9... Ne7 {[%clk 0:03:02.5]} 10. Nf1
{[%clk 0:03:08.2]} 10... Ng6 {[%clk 0:03:04.1]} 11. Ng3 {[%clk 0:03:08.7]} 11...
O-O {[%clk 0:03:05.2]} 12. d4 {[%clk 0:03:09.7]} 12... Bg4 {[%clk 0:03:02.7]}
13. Be2 {[%clk 0:03:07.5]} 13... Re8 {[%clk 0:03:00.8]} 14. h3 {[%clk
0:03:07.3]} 14... Bd7 {[%clk 0:03:01]} 15. Bf1 {[%clk 0:03:07.4]} 15... Qc8
{[%clk 0:02:52.8]} 16. Be3 {[%clk 0:03:04.9]} 16... Nf4 {[%clk 0:02:47.1]} 17.
Qd2 {[%clk 0:02:51]} 17... g5 {[%clk 0:02:44.5]} 18. a5 {[%clk 0:02:45.8]} 18...
Kg7 {[%clk 0:02:44.6]} 19. Rad1 {[%clk 0:02:45.6]} 19... Ba4 {[%clk 0:02:40.8]}
20. Ra1 {[%clk 0:02:45.2]} 20... Bd7 {[%clk 0:02:41.3]} 21. Rad1 {[%clk
0:02:42.9]} 21... Kg6 {[%clk 0:02:32.3]} 22. b4 {[%clk 0:02:17.3]} 22... Re7
{[%clk 0:02:26.3]} 23. c4 {[%clk 0:02:12.9]} 23... h5 {[%clk 0:02:19.9]} 24. h4
{[%clk 0:02:12.9]} 24... g4 {[%clk 0:02:04.3]} 25. Ng5 {[%clk 0:02:13]} 25...
Ne6 {[%clk 0:01:59.2]} 26. c5 {[%clk 0:01:51.2]} 26... exd4 {[%clk 0:01:50.7]}
27. Bxd4 {[%clk 0:01:53.1]} 27... Nxd4 {[%clk 0:01:51.6]} 28. Qxd4 {[%clk
0:01:54]} 28... Re5 {[%clk 0:01:43.1]} 29. Bc4 {[%clk 0:01:27.3]} 29... Be6
{[%clk 0:01:43.9]} 30. Bxe6 {[%clk 0:01:27.9]} 30... fxe6 {[%clk 0:01:44.8]} 31.
Qc3 {[%clk 0:01:28.5]} 31... Qf8 {[%clk 0:01:31.8]} 32. Qc2 {[%clk 0:01:20.3]}
32... dxc5 {[%clk 0:01:10.5]} 33. Nxe6 {[%clk 0:01:20.5]} 33... Qf7 {[%clk
0:00:58.5]} 34. Nf4+ {[%clk 0:01:07.6]} 34... Kh6 {[%clk 0:00:57.7]} 35. Nd3
{[%clk 0:01:07.6]} 35... Rae8 {[%clk 0:00:49.7]} 36. bxc5 {[%clk 0:01:06.7]}
36... R5e6 {[%clk 0:00:32]} 37. Nf5+ {[%clk 0:00:54.6]} 37... Kh7 {[%clk
0:00:32]} 38. e5 {[%clk 0:00:56.5]} 38... Nd5 {[%clk 0:00:23.3]} 39. Nd4 {[%clk
0:00:57.3]} 39... Rg6 {[%clk 0:00:21.4]} 40. e6 {[%clk 0:00:57.6]} 40... Qf6
{[%clk 0:00:22.5]} 41. Ne5 {[%clk 0:00:57.7]} 41... g3 {[%clk 0:00:19.3]} 42.
fxg3 {[%clk 0:00:55]} 42... Nb4 {[%clk 0:00:15.8]} 43. Qc4 {[%clk 0:00:55.9]}
43... Rxg3 {[%clk 0:00:14.2]} 44. Qxb4 {[%clk 0:00:56.9]} 44... Rxg2+ {[%clk
0:00:15]} 45. Kxg2 {[%clk 0:00:57.7]} 45... Rg8+ {[%clk 0:00:16.5]} 46. Kh3
{[%clk 0:00:50.7]} 46... Qf2 {[%clk 0:00:09.1]} 47. Qb1+ {[%clk 0:00:49]} 47...
Kh6 {[%clk 0:00:08]} 48. Nf7+ {[%clk 0:00:43.3]} 48... Kg7 {[%clk 0:00:09.2]}
49. Rg1+ {[%clk 0:00:43.8]} 1-0